Workbook

Sheet 支出
B1: [活動名稱] 的活動預算表 | H1: 支出
B3: 總支出 | G3: 預估 | H3: 實際
G4: =SUM(C11,C19,C25,C32,G11,G19,G24) -> NT$882.00 | H4: =SUM(D11,D19,D25,D32,H11,H19,H24) -> NT$333.00
B6: 場地 | C6: 預估 | D6: 實際 | F6: 茶點 | G6: 預估 | H6: 實際
B7: 會議室和禮堂地費 | C7: NT$500.00 | F7: 食物
B8: 現場工作人員 | F8: 飲料 | G8: NT$20.00
B9: 設備 | F9: 桌巾 | H9: NT$20.00
B10: 桌椅 | F10: 工作人員和小費
B11: 合計 | C11: =SUBTOTAL(109,表格1[預估]) -> NT$500.00 | D11: =SUBTOTAL(109,表格1[實際]) -> NT$0.00 | F11: 合計 | G11: =SUBTOTAL(109,表格3[預估]) -> NT$20.00 | H11: =SUBTOTAL(109,表格3[實際]) -> NT$20.00
B13: 佈置裝飾 | C13: 預估 | D13: 實際 | F13: 節目 | G13: 預估 | H13: 實際
B14: 花飾 | C14: NT$200.00 | D14: NT$300.00 | F14: 表演者
B15: 蠟燭 | F15: 演講者 | G15: NT$30.00
B16: 燈光 | F16: 旅遊
B17: 氣球 | F17: 住宿費
B18: 紙類用品 | F18: 其他
B19: 合計 | C19: =SUBTOTAL(109,表格4[預估]) -> NT$200.00 | D19: =SUBTOTAL(109,表格4[實際]) -> NT$300.00 | F19: 合計 | G19: =SUBTOTAL(109,表格5[預估]) -> NT$30.00 | H19: =SUBTOTAL(109,表格5[實際]) -> NT$0.00
B21: 宣傳 | C21: 預估 | D21: 實際 | F21: 獎品 | G21: 預估 | H21: 實際
B22: 平面設計 | F22: 獎徽/獎牌/獎盃
B23: 影印/列印 | C23: NT$20.00 | F23: 禮物 | G23: NT$100.00
B24: 郵資 | F24: 合計 | G24: =SUBTOTAL(109,表格7[預估]) -> NT$100.00 | H24: =SUBTOTAL(109,表格7[實際]) -> NT$0.00
B25: 合計 | C25: =SUBTOTAL(109,表格6[預估]) -> NT$20.00 | D25: =SUBTOTAL(109,表格6[實際]) -> NT$0.00
B27: 其他 | C27: 預估 | D27: 實際
B28: 電話 | D28: NT$13.00
B29: 交通 | C29: NT$12.00
B30: 文具用品
B31: 傳真服務
B32: 合計 | C32: =SUBTOTAL(109,表格8[預估]) -> NT$12.00 | D32: =SUBTOTAL(109,表格8[實際]) -> NT$13.00

Sheet 收入
B1: [活動名稱] 的活動預算表 | G1: 收入
B3: 總收入 | F3: 預估 | G3: 實際
F4: =SUM(F11, F18, F25, F33) -> NT$1,936.00 | G4: =SUM(G11,G18,G25, G33) -> NT$1,831.00
B6: 門票
B7: 預估數量 | C7: 實際數量 | D7: 類型 | E7: 價格 | F7: 預估收入 | G7: 實際收入
B8: 300 | C8: 278 | D8: 成人 @ | E8: NT$5.00 | F8: =B8*E8 -> NT$1,500.00 | G8: =C8*E8 -> NT$1,390.00
B9: 197 | C9: 195 | D9: 兒童 @ | E9: NT$2.00 | F9: =B9*E9 -> NT$394.00 | G9: =C9*E9 -> NT$390.00
B10: 42 | C10: 51 | D10: 其他 @ | E10: NT$1.00 | F10: =B10*E10 -> NT$42.00 | G10: =C10*E10 -> NT$51.00
B11: 合計 | F11: =SUBTOTAL(109,表格9[預估收入]) -> NT$1,936.00 | G11: =SUBTOTAL(109,表格9[實際收入]) -> NT$1,831.00
B13: 節目廣告
B14: 預估數量 | C14: 實際數量 | D14: 類型 | E14: 價格 | F14: 預估收入 | G14: 實際收入
B15: 12 | D15: 封面 @ | F15: =B15*E15 -> NT$0.00 | G15: =C15*E15 -> NT$0.00
C16: 158 | D16: 半版 @ | F16: =B16*E16 -> NT$0.00 | G16: =C16*E16 -> NT$0.00
B17: 4 | D17: 1/4 版 @ | F17: =B17*E17 -> NT$0.00 | G17: =C17*E17 -> NT$0.00
B18: 合計 | F18: =SUBTOTAL(109,表格10[預估收入]) -> NT$0.00 | G18: =SUBTOTAL(109,表格10[實際收入]) -> NT$0.00
B20: 參展商/廠商
B21: 預估數量 | C21: 實際數量 | D21: 類型 | E21: 價格 | F21: 預估收入 | G21: 實際收入
B22: 23 | D22: 大型攤位 @ | F22: =B22*E22 -> NT$0.00 | G22: =C22*E22 -> NT$0.00
B23: 354 | D23: 中型攤位 @ | F23: =B23*E23 -> NT$0.00 | G23: =C23*E23 -> NT$0.00
B24: 56 | D24: 小型攤位 @ | F24: =B24*E24 -> NT$0.00 | G24: =C24*E24 -> NT$0.00
B25: 合計 | F25: =SUBTOTAL(109,表格11[預估收入]) -> NT$0.00 | G25: =SUBTOTAL(109,表格11[實際收入]) -> NT$0.00
B27: 銷售項目
B28: 預估數量 | C28: 實際數量 | D28: 類型 | E28: 價格 | F28: 預估收入 | G28: 實際收入
D29: 項目 @ | F29: =B29*E29 -> NT$0.00 | G29: =C29*E29 -> NT$0.00
B30: 123 | D30: 項目 @ | F30: =B30*E30 -> NT$0.00 | G30: =C30*E30 -> NT$0.00
D31: 項目 @ | F31: =B31*E31 -> NT$0.00 | G31: =C31*E31 -> NT$0.00
B32: 13 | D32: 項目 @ | F32: =B32*E32 -> NT$0.00 | G32: =C32*E32 -> NT$0.00
B33: 合計 | F33: =SUBTOTAL(109,表格12[預估收入]) -> NT$0.00 | G33: =SUBTOTAL(109,表格12[實際收入]) -> NT$0.00

Sheet 損益摘要
B1: [活動名稱] 的活動預算表 | G1: 收益
G2: 損失摘要
C5: 預估 | D5: 實際
B6: 總收入 | C6: =收入!F4 -> NT$1,936.00 | D6: =收入!G4 -> NT$1,831.00
B7: 總支出 | C7: =支出!G4 -> NT$882.00 | D7: =支出!H4 -> NT$333.00
B9: 總收益(或損失) | C9: =C6-C7 -> NT$1,054.00 | D9: =D6-D7 -> NT$1,498.00
